[Event "*** Titled Tuesday Blitz"]
[Site "Chess.com"]
[Date "2020.02.04"]
[Round "4"]
[White "vladimirdamjanovic"]
[Black "Msb2"]
[Result "0-1"]
[WhiteElo "2617"]
[BlackElo "2858"]
[TimeControl "180+2"]
[EndTime "9:52:39 PST"]
[Termination "Msb2 won by checkmate"]

1. d4 {[%clk 0:03:01.9]} 1... Nf6 {[%clk 0:02:51]} 2. c4 {[%clk 0:03:01.4]} 2...
e6 {[%clk 0:02:52.3]} 3. Nf3 {[%clk 0:03:02.1]} 3... d5 {[%clk 0:02:52.7]} 4.
Nc3 {[%clk 0:03:02.7]} 4... Bb4 {[%clk 0:02:53.7]} 5. Bg5 {[%clk 0:03:01.3]}
5... dxc4 {[%clk 0:02:54]} 6. e3 {[%clk 0:02:56.4]} 6... b5 {[%clk 0:02:54.8]}
7. a4 {[%clk 0:02:52.8]} 7... c6 {[%clk 0:02:56]} 8. Nd2 {[%clk 0:02:43.9]} 8...
Bb7 {[%clk 0:02:20.2]} 9. axb5 {[%clk 0:02:39.6]} 9... Bxc3 {[%clk 0:02:20.9]}
10. bxc3 {[%clk 0:02:36]} 10... cxb5 {[%clk 0:02:21.7]} 11. Qb1 {[%clk
0:02:16.6]} 11... Qd7 {[%clk 0:02:21]} 12. Bxf6 {[%clk 0:02:03.8]} 12... gxf6
{[%clk 0:02:22.9]} 13. Ne4 {[%clk 0:02:05.2]} 13... Bxe4 {[%clk 0:02:09.7]} 14.
Qxe4 {[%clk 0:02:07.1]} 14... Qd5 {[%clk 0:02:02.1]} 15. Qf4 {[%clk 0:01:09.3]}
15... Nd7 {[%clk 0:01:58.4]} 16. Be2 {[%clk 0:01:07.7]} 16... Qg5 {[%clk
0:01:27.4]} 17. Qxg5 {[%clk 0:01:02.5]} 17... fxg5 {[%clk 0:01:29.3]} 18. Bf3
{[%clk 0:01:04.1]} 18... Ke7 {[%clk 0:01:30.8]} 19. Bxa8 {[%clk 0:01:02.9]}
19... Rxa8 {[%clk 0:01:32.7]} 20. Ra5 {[%clk 0:01:00.2]} 20... a6 {[%clk
0:01:20.6]} 21. Kd2 {[%clk 0:01:01.1]} 21... Nf6 {[%clk 0:00:39.3]} 22. Kc2
{[%clk 0:00:30.1]} 22... Nd5 {[%clk 0:00:38.1]} 23. Rha1 {[%clk 0:00:26.2]}
23... Nc7 {[%clk 0:00:39.3]} 24. e4 {[%clk 0:00:23.5]} 24... Kd6 {[%clk
0:00:40.8]} 25. f3 {[%clk 0:00:21.3]} 25... Kc6 {[%clk 0:00:42.1]} 26. h4 {[%clk
0:00:18.8]} 26... gxh4 {[%clk 0:00:36.1]} 27. Rh1 {[%clk 0:00:19.2]} 27... Rg8
{[%clk 0:00:37.1]} 28. Rh2 {[%clk 0:00:20]} 28... h3 {[%clk 0:00:35.8]} 29. g4
{[%clk 0:00:17.5]} 29... f5 {[%clk 0:00:17.6]} 30. gxf5 {[%clk 0:00:05.5]} 30...
exf5 {[%clk 0:00:19.5]} 31. Ra1 {[%clk 0:00:06.8]} 31... Rg3 {[%clk 0:00:18.9]}
32. Rf1 {[%clk 0:00:04.7]} 32... Kd6 {[%clk 0:00:15.9]} 33. exf5 {[%clk
0:00:05.1]} 33... Nd5 {[%clk 0:00:17]} 34. Kd2 {[%clk 0:00:04.3]} 34... a5
{[%clk 0:00:12.1]} 35. f6 {[%clk 0:00:03.3]} 35... b4 {[%clk 0:00:12.7]} 36. f7
{[%clk 0:00:03.8]} 36... Ke7 {[%clk 0:00:14.1]} 37. cxb4 {[%clk 0:00:03.9]}
37... axb4 {[%clk 0:00:15]} 38. Rfh1 {[%clk 0:00:05.2]} 38... Kxf7 {[%clk
0:00:15.2]} 39. Rxh3 {[%clk 0:00:06.1]} 39... Rg2+ {[%clk 0:00:16.8]} 40. Kc1
{[%clk 0:00:07.6]} 40... b3 {[%clk 0:00:16.3]} 41. Rxh7+ {[%clk 0:00:08.7]}
41... Ke6 {[%clk 0:00:14.3]} 42. R7h6+ {[%clk 0:00:09.5]} 42... Nf6 {[%clk
0:00:13.2]} 43. R6h2 {[%clk 0:00:04.4]} 43... Rg3 {[%clk 0:00:09.9]} 44. Rf2
{[%clk 0:00:03.1]} 44... Nd5 {[%clk 0:00:10.4]} 45. Kb2 {[%clk 0:00:03.2]} 45...
Rg8 {[%clk 0:00:07.6]} 46. Re1+ {[%clk 0:00:03.1]} 46... Kd6 {[%clk 0:00:08.2]}
47. Rfe2 {[%clk 0:00:04.2]} 47... Ra8 {[%clk 0:00:08.4]} 48. Re6+ {[%clk
0:00:05.2]} 48... Kd7 {[%clk 0:00:09.9]} 49. R6e5 {[%clk 0:00:03.1]} 49... Ra2+
{[%clk 0:00:10.8]} 50. Kc1 {[%clk 0:00:04.6]} 50... Rc2+ {[%clk 0:00:12.1]} 51.
Kb1 {[%clk 0:00:03.3]} 51... Nc3+ {[%clk 0:00:14]} 52. Ka1 {[%clk 0:00:05.1]}
52... Ra2# {[%clk 0:00:15.9]} 0-1

[Event "*** Titled Tuesday Blitz"]
[Site "Chess.com"]
[Date "2020.02.04"]
[Round "4"]
[White "Bryakin_Mikhail"]
[Black "Volodar_Murzin"]
[Result "0-1"]
[WhiteElo "2724"]
[BlackElo "2578"]
[TimeControl "180+2"]
[EndTime "9:52:46 PST"]
[Termination "Volodar_Murzin won by resignation"]

1. d4 {[%clk 0:02:14.9]} 1... d5 {[%clk 0:02:59.5]} 2. Nf3 {[%clk 0:02:08.2]}
2... Nf6 {[%clk 0:02:58.5]} 3. c4 {[%clk 0:02:07.2]} 3... c6 {[%clk 0:02:59.4]}
4. g3 {[%clk 0:02:05.7]} 4... Bg4 {[%clk 0:02:48.3]} 5. Ne5 {[%clk 0:02:05.4]}
5... Bf5 {[%clk 0:02:49.5]} 6. cxd5 {[%clk 0:02:04.5]} 6... cxd5 {[%clk
0:02:50.4]} 7. Qb3 {[%clk 0:02:04.5]} 7... Nc6 {[%clk 0:02:51.2]} 8. Nc3 {[%clk
0:01:39.7]} 8... Qb6 {[%clk 0:02:03.4]} 9. e3 {[%clk 0:01:11.2]} 9... e6 {[%clk
0:01:42.1]} 10. Bb5 {[%clk 0:01:09.4]} 10... Bd6 {[%clk 0:01:03.4]} 11. Bxc6+
{[%clk 0:01:02.7]} 11... bxc6 {[%clk 0:01:03.7]} 12. Qxb6 {[%clk 0:01:04]} 12...
axb6 {[%clk 0:01:05.2]} 13. Nxc6 {[%clk 0:01:05.6]} 13... Kd7 {[%clk 0:01:00.3]}
14. Ne5+ {[%clk 0:01:06.7]} 14... Bxe5 {[%clk 0:01:01.8]} 15. dxe5 {[%clk
0:01:08.6]} 15... Ne4 {[%clk 0:01:03.3]} 16. Bd2 {[%clk 0:01:06.3]} 16... Nc5
{[%clk 0:01:02.8]} 17. Ke2 {[%clk 0:01:03]} 17... Nd3 {[%clk 0:00:50.2]} 18. g4
{[%clk 0:00:53.5]} 18... Bg6 {[%clk 0:00:49.7]} 19. f4 {[%clk 0:00:49.6]} 19...
Nxb2 {[%clk 0:00:44.8]} 20. f5 {[%clk 0:00:51]} 20... exf5 {[%clk 0:00:45.7]}
21. Nxd5 {[%clk 0:00:52.6]} 21... Na4 {[%clk 0:00:43.8]} 22. Bb4 {[%clk
0:00:46.9]} 22... Rhc8 {[%clk 0:00:29.2]} 23. Rhd1 {[%clk 0:00:38]} 23... Ke8
{[%clk 0:00:27.5]} 24. Bd6 {[%clk 0:00:39.3]} 24... Rc2+ {[%clk 0:00:23.8]} 25.
Kf3 {[%clk 0:00:40]} 25... fxg4+ {[%clk 0:00:24]} 26. Kxg4 {[%clk 0:00:41.3]}
26... Rac8 {[%clk 0:00:22.1]} 27. Nf4 {[%clk 0:00:38]} 27... Nc3 {[%clk
0:00:21.5]} 28. Rd4 {[%clk 0:00:31.3]} 28... Rxh2 {[%clk 0:00:17.6]} 29. Rc1
{[%clk 0:00:25.3]} 29... Rc2 {[%clk 0:00:16.2]} 30. Rxc2 {[%clk 0:00:20.1]}
30... Bxc2 {[%clk 0:00:17.6]} 31. a3 {[%clk 0:00:20.1]} 31... b5 {[%clk
0:00:15.6]} 32. Rd2 {[%clk 0:00:19.6]} 32... Ne4 {[%clk 0:00:16]} 33. Rh2 {[%clk
0:00:19.5]} 33... Nxd6 {[%clk 0:00:16.3]} 34. exd6 {[%clk 0:00:21.4]} 34... Kd7
{[%clk 0:00:17.5]} 35. Rd2 {[%clk 0:00:21.1]} 35... Rc4 {[%clk 0:00:13.6]} 36.
Kf3 {[%clk 0:00:21.6]} 36... Be4+ {[%clk 0:00:14.6]} 37. Kg3 {[%clk 0:00:22.5]}
37... g6 {[%clk 0:00:14.8]} 38. Nh3 {[%clk 0:00:22.2]} 38... f6 {[%clk
0:00:15.1]} 39. Nf2 {[%clk 0:00:23.4]} 39... Bc6 {[%clk 0:00:15.4]} 40. Ng4
{[%clk 0:00:24.1]} 40... Ke6 {[%clk 0:00:14.4]} 41. Rd3 {[%clk 0:00:13.5]} 41...
h5 {[%clk 0:00:15]} 42. Nf2 {[%clk 0:00:13]} 42... g5 {[%clk 0:00:15.8]} 43. e4
{[%clk 0:00:13.4]} 43... h4+ {[%clk 0:00:12.4]} 44. Kh3 {[%clk 0:00:14.8]} 44...
Bd7 {[%clk 0:00:12.3]} 45. Kg2 {[%clk 0:00:15.2]} 45... Ra4 {[%clk 0:00:11.2]}
46. Ng4 {[%clk 0:00:15.4]} 46... Kf7 {[%clk 0:00:12.4]} 47. Kf3 {[%clk
0:00:13.6]} 47... Bxg4+ {[%clk 0:00:09.5]} 48. Kxg4 {[%clk 0:00:15.5]} 48...
Rxe4+ {[%clk 0:00:10.8]} 49. Kh5 {[%clk 0:00:15.7]} 49... Ke8 {[%clk 0:00:10.6]}
50. Kg6 {[%clk 0:00:16.5]} 50... Re6 {[%clk 0:00:11.6]} 51. Kf5 {[%clk
0:00:17.4]} 51... Kd7 {[%clk 0:00:13]} 52. Rd5 {[%clk 0:00:18.8]} 52... Re5+
{[%clk 0:00:12.7]} 53. Rxe5 {[%clk 0:00:20]} 53... fxe5 {[%clk 0:00:14.3]} 0-1

[Event "*** Titled Tuesday Blitz"]
[Site "Chess.com"]
[Date "2020.02.04"]
[Round "4"]
[White "kesarev"]
[Black "kinga2008"]
[Result "1-0"]
[WhiteElo "2452"]
[BlackElo "1942"]
[TimeControl "180+2"]
[EndTime "9:52:48 PST"]
[Termination "kesarev won by checkmate"]

1. Nf3 {[%clk 0:03:01.9]} 1... d5 {[%clk 0:02:44.6]} 2. c4 {[%clk 0:03:02.3]}
2... dxc4 {[%clk 0:02:33.8]} 3. Na3 {[%clk 0:03:02.5]} 3... e6 {[%clk
0:02:32.5]} 4. Nxc4 {[%clk 0:03:03.3]} 4... Nc6 {[%clk 0:02:15.4]} 5. g3 {[%clk
0:03:03.3]} 5... g6 {[%clk 0:02:15.5]} 6. h4 {[%clk 0:03:02.5]} 6... Bg7 {[%clk
0:02:15]} 7. h5 {[%clk 0:03:03.4]} 7... Nf6 {[%clk 0:02:08.5]} 8. h6 {[%clk
0:03:02.3]} 8... Bf8 {[%clk 0:02:07.2]} 9. d3 {[%clk 0:03:01.2]} 9... b5 {[%clk
0:02:06.6]} 10. Ne3 {[%clk 0:02:58.2]} 10... Bb7 {[%clk 0:02:03]} 11. Bg2 {[%clk
0:02:58.6]} 11... Nd5 {[%clk 0:02:02.8]} 12. Qb3 {[%clk 0:02:46.1]} 12... Nxe3
{[%clk 0:01:55.7]} 13. Bxe3 {[%clk 0:02:46.4]} 13... Bb4+ {[%clk 0:01:53.2]} 14.
Kf1 {[%clk 0:02:44.8]} 14... a6 {[%clk 0:01:48.9]} 15. Rc1 {[%clk 0:02:19.9]}
15... Qd5 {[%clk 0:01:42.9]} 16. Ng5 {[%clk 0:01:40]} 16... Qxb3 {[%clk
0:01:31.6]} 17. axb3 {[%clk 0:01:40.2]} 17... Kd7 {[%clk 0:01:03.7]} 18. Nxf7
{[%clk 0:01:39.8]} 18... Bd6 {[%clk 0:00:26.5]} 19. Nxh8 {[%clk 0:01:37.7]}
19... Rxh8 {[%clk 0:00:24.7]} 20. Bc5 {[%clk 0:01:19.9]} 20... Rf8 {[%clk
0:00:20.6]} 21. Bxd6 {[%clk 0:01:17.2]} 21... cxd6 {[%clk 0:00:18.1]} 22. e3
{[%clk 0:01:16.9]} 22... d5 {[%clk 0:00:16]} 23. Ke2 {[%clk 0:01:15.7]} 23...
Ne5 {[%clk 0:00:16.8]} 24. Rc2 {[%clk 0:01:09.8]} 24... a5 {[%clk 0:00:14.7]}
25. f4 {[%clk 0:01:08.3]} 25... Nc6 {[%clk 0:00:12.5]} 26. Rhc1 {[%clk
0:01:06.1]} 26... Kd6 {[%clk 0:00:12.4]} 27. d4 {[%clk 0:01:05.2]} 27... Rc8
{[%clk 0:00:10.6]} 28. g4 {[%clk 0:01:05.4]} 28... b4 {[%clk 0:00:06.7]} 29. Kd2
{[%clk 0:00:59.7]} 29... Rf8 {[%clk 0:00:03.5]} 30. g5 {[%clk 0:01:00]} 30...
Rc8 {[%clk 0:00:03.7]} 31. Bf1 {[%clk 0:01:00.8]} 31... Rb8 {[%clk 0:00:02.5]}
32. Bb5 {[%clk 0:01:01]} 32... Rc8 {[%clk 0:00:02.6]} 33. Rc5 {[%clk 0:00:58.3]}
33... Rc7 {[%clk 0:00:03.2]} 34. Bxc6 {[%clk 0:00:58.1]} 34... Rxc6 {[%clk
0:00:04.3]} 35. Rxa5 {[%clk 0:00:59]} 35... Rb6 {[%clk 0:00:03.1]} 36. Rcc5
{[%clk 0:00:58.1]} 36... Bc6 {[%clk 0:00:03.7]} 37. Ra7 {[%clk 0:00:58.3]} 37...
Bb7 {[%clk 0:00:04.7]} 38. Ke2 {[%clk 0:00:44.9]} 38... Kd7 {[%clk 0:00:04]} 39.
Ra1 {[%clk 0:00:33.1]} 39... Kd6 {[%clk 0:00:03.9]} 40. Kd2 {[%clk 0:00:33.5]}
40... Ba6 {[%clk 0:00:03.5]} 41. Rca5 {[%clk 0:00:32.8]} 41... Bb7 {[%clk
0:00:03.8]} 42. Ra7 {[%clk 0:00:32.8]} 42... Kc7 {[%clk 0:00:03.6]} 43. Rc1+
{[%clk 0:00:31.5]} 43... Kd6 {[%clk 0:00:04.4]} 44. Rc5 {[%clk 0:00:31.9]} 44...
Kd7 {[%clk 0:00:05]} 45. e4 {[%clk 0:00:32.5]} 45... dxe4 {[%clk 0:00:04]} 46.
Ke3 {[%clk 0:00:33.6]} 46... Kd6 {[%clk 0:00:05.3]} 47. Rc4 {[%clk 0:00:33.1]}
47... Kd5 {[%clk 0:00:04.2]} 48. Ra5+ {[%clk 0:00:31.7]} 48... Kd6 {[%clk
0:00:04.6]} 49. Rac5 {[%clk 0:00:30.7]} 49... Bd5 {[%clk 0:00:05.2]} 50. Rc1
{[%clk 0:00:29.6]} 50... Ra6 {[%clk 0:00:03.7]} 51. Rc7 {[%clk 0:00:29.6]} 51...
Ra2 {[%clk 0:00:03]} 52. Rxh7 {[%clk 0:00:29.8]} 52... Rxb2 {[%clk 0:00:04.5]}
53. Rcc7 {[%clk 0:00:29.3]} 53... Rxb3+ {[%clk 0:00:06.4]} 54. Kd2 {[%clk
0:00:30.3]} 54... e3+ {[%clk 0:00:03.9]} 55. Kc2 {[%clk 0:00:31.3]} 55... e2
{[%clk 0:00:03.4]} 56. Rhd7# {[%clk 0:00:31.7]} 1-0

[Event "*** Titled Tuesday Blitz"]
[Site "Chess.com"]
[Date "2020.02.04"]
[Round "4"]
[White "rpragchess"]
[Black "RoelandPruijssers"]
[Result "0-1"]
[WhiteElo "2805"]
[BlackElo "2612"]
[TimeControl "180+2"]
[EndTime "9:52:56 PST"]
[Termination "RoelandPruijssers won by checkmate"]

1. Nf3 {[%clk 0:03:01.9]} 1... f5 {[%clk 0:02:59.9]} 2. d3 {[%clk 0:03:01.8]}
2... Nc6 {[%clk 0:03:00.2]} 3. d4 {[%clk 0:03:02.5]} 3... e6 {[%clk 0:03:00.9]}
4. g3 {[%clk 0:03:03.3]} 4... Nf6 {[%clk 0:03:02]} 5. Bg2 {[%clk 0:03:03.2]}
5... d6 {[%clk 0:02:59.8]} 6. c4 {[%clk 0:03:02]} 6... e5 {[%clk 0:02:57.9]} 7.
Nc3 {[%clk 0:02:46.5]} 7... e4 {[%clk 0:02:47]} 8. Ng5 {[%clk 0:02:47.1]} 8...
Be7 {[%clk 0:02:42]} 9. Nh3 {[%clk 0:02:43.3]} 9... O-O {[%clk 0:02:40.1]} 10.
Nf4 {[%clk 0:02:44]} 10... Qe8 {[%clk 0:02:34.9]} 11. O-O {[%clk 0:02:41.4]}
11... Bd8 {[%clk 0:02:22]} 12. f3 {[%clk 0:02:29.9]} 12... Bd7 {[%clk
0:02:03.4]} 13. Ncd5 {[%clk 0:02:10.2]} 13... exf3 {[%clk 0:01:06.6]} 14. exf3
{[%clk 0:02:07.7]} 14... Qf7 {[%clk 0:00:59.9]} 15. Be3 {[%clk 0:01:31.1]} 15...
Re8 {[%clk 0:00:52.1]} 16. Bf2 {[%clk 0:01:29.5]} 16... h6 {[%clk 0:00:48.6]}
17. b4 {[%clk 0:01:23.4]} 17... g5 {[%clk 0:00:44.2]} 18. Nxf6+ {[%clk
0:01:24.1]} 18... Qxf6 {[%clk 0:00:36.8]} 19. Nd5 {[%clk 0:01:26]} 19... Qg7
{[%clk 0:00:37.7]} 20. f4 {[%clk 0:01:18.2]} 20... g4 {[%clk 0:00:36.9]} 21. b5
{[%clk 0:00:43.3]} 21... Na5 {[%clk 0:00:37.9]} 22. Ne3 {[%clk 0:00:37.1]} 22...
c6 {[%clk 0:00:34.4]} 23. Qd3 {[%clk 0:00:36.8]} 23... Qf7 {[%clk 0:00:32.7]}
24. Rfe1 {[%clk 0:00:34.1]} 24... Rc8 {[%clk 0:00:28.4]} 25. bxc6 {[%clk
0:00:28.2]} 25... bxc6 {[%clk 0:00:30.3]} 26. Rab1 {[%clk 0:00:29.2]} 26... Bb6
{[%clk 0:00:28.5]} 27. c5 {[%clk 0:00:26.9]} 27... dxc5 {[%clk 0:00:28.2]} 28.
dxc5 {[%clk 0:00:28.8]} 28... Bxc5 {[%clk 0:00:21.9]} 29. Nxg4 {[%clk
0:00:24.4]} 29... Bxf2+ {[%clk 0:00:16.1]} 30. Nxf2 {[%clk 0:00:25.7]} 30... Be6
{[%clk 0:00:16.3]} 31. Qc3 {[%clk 0:00:18.5]} 31... Nc4 {[%clk 0:00:16.8]} 32.
Nd3 {[%clk 0:00:19.7]} 32... Bd5 {[%clk 0:00:18]} 33. Ne5 {[%clk 0:00:17.8]}
33... Nxe5 {[%clk 0:00:16.2]} 34. fxe5 {[%clk 0:00:19.3]} 34... Bxg2 {[%clk
0:00:17.1]} 35. Kxg2 {[%clk 0:00:21.2]} 35... Qxa2+ {[%clk 0:00:17.9]} 36. Rb2
{[%clk 0:00:22.2]} 36... Qd5+ {[%clk 0:00:19]} 37. Kh3 {[%clk 0:00:20.3]} 37...
c5 {[%clk 0:00:15.7]} 38. Rd2 {[%clk 0:00:20.7]} 38... Qf7 {[%clk 0:00:15.8]}
39. Rd6 {[%clk 0:00:17.8]} 39... Re6 {[%clk 0:00:14.5]} 40. Red1 {[%clk
0:00:16.5]} 40... Rce8 {[%clk 0:00:14.5]} 41. Rxe6 {[%clk 0:00:17]} 41... Rxe6
{[%clk 0:00:15]} 42. Rd8+ {[%clk 0:00:17.7]} 42... Kh7 {[%clk 0:00:15.5]} 43.
Qd2 {[%clk 0:00:09.6]} 43... Rxe5 {[%clk 0:00:11.4]} 44. Kg2 {[%clk 0:00:06.6]}
44... Qb7+ {[%clk 0:00:11.2]} 45. Kf2 {[%clk 0:00:07.3]} 45... Qe4 {[%clk
0:00:06.3]} 46. Rd6 {[%clk 0:00:05]} 46... Re6 {[%clk 0:00:07]} 47. Rd7+ {[%clk
0:00:06.3]} 47... Re7 {[%clk 0:00:08.2]} 48. Rd6 {[%clk 0:00:07.8]} 48... Re6
{[%clk 0:00:08.7]} 49. Rd7+ {[%clk 0:00:09.4]} 49... Kg6 {[%clk 0:00:09.7]} 50.
Rd8 {[%clk 0:00:05.3]} 50... Qh1 {[%clk 0:00:08.3]} 51. Rg8+ {[%clk 0:00:05.4]}
51... Kh5 {[%clk 0:00:05.9]} 52. g4+ {[%clk 0:00:04.8]} 52... fxg4 {[%clk
0:00:06.2]} 53. Kg3 {[%clk 0:00:04.1]} 53... Qf3# {[%clk 0:00:06]} 0-1

[Event "*** Titled Tuesday Blitz"]
[Site "Chess.com"]
[Date "2020.02.04"]
[Round "4"]
[White "Eraschenkov"]
[Black "Genghis_K"]
[Result "0-1"]
[WhiteElo "2617"]
[BlackElo "2913"]
[TimeControl "180+2"]
[EndTime "9:53:19 PST"]
[Termination "Genghis_K won by resignation"]

1. e4 {[%clk 0:02:45.3]} 1... c5 {[%clk 0:02:59.3]} 2. Nf3 {[%clk 0:02:45.6]}
2... d6 {[%clk 0:03:00.9]} 3. c3 {[%clk 0:02:45.9]} 3... Nf6 {[%clk 0:03:01.1]}
4. h3 {[%clk 0:02:46.9]} 4... Nc6 {[%clk 0:02:55.4]} 5. Bd3 {[%clk 0:02:47.2]}
5... d5 {[%clk 0:02:53.4]} 6. e5 {[%clk 0:02:48.1]} 6... c4 {[%clk 0:02:54.7]}
7. Bc2 {[%clk 0:02:41.6]} 7... Nd7 {[%clk 0:02:54.4]} 8. Qe2 {[%clk 0:02:39.7]}
8... e6 {[%clk 0:02:53.9]} 9. O-O {[%clk 0:02:37.1]} 9... Qc7 {[%clk 0:02:51]}
10. Re1 {[%clk 0:02:36.1]} 10... Be7 {[%clk 0:02:47.4]} 11. b3 {[%clk
0:02:26.1]} 11... b5 {[%clk 0:02:23.4]} 12. d4 {[%clk 0:02:10.8]} 12... cxd3
{[%clk 0:02:06.7]} 13. Bxd3 {[%clk 0:02:11.2]} 13... b4 {[%clk 0:02:05.5]} 14.
c4 {[%clk 0:02:01.3]} 14... Nc5 {[%clk 0:01:46.5]} 15. cxd5 {[%clk 0:01:54.3]}
15... exd5 {[%clk 0:01:48.4]} 16. Bb5 {[%clk 0:01:30.5]} 16... O-O {[%clk
0:01:43]} 17. Be3 {[%clk 0:01:20.6]} 17... a6 {[%clk 0:01:11.6]} 18. Bxc6 {[%clk
0:01:16.6]} 18... Qxc6 {[%clk 0:01:13.5]} 19. Nbd2 {[%clk 0:01:13.6]} 19... Qg6
{[%clk 0:01:08.1]} 20. Kh2 {[%clk 0:01:09.7]} 20... a5 {[%clk 0:00:57.5]} 21.
Nd4 {[%clk 0:00:52.9]} 21... Ba6 {[%clk 0:00:42.6]} 22. Qf3 {[%clk 0:00:49.3]}
22... Nd3 {[%clk 0:00:36.4]} 23. Nf5 {[%clk 0:00:44.9]} 23... Rfe8 {[%clk
0:00:23]} 24. Bd4 {[%clk 0:00:34.4]} 24... Nxe1 {[%clk 0:00:22.6]} 25. Rxe1
{[%clk 0:00:35.4]} 25... Bf8 {[%clk 0:00:22.6]} 26. Re3 {[%clk 0:00:30.3]} 26...
Bc8 {[%clk 0:00:21.2]} 27. g4 {[%clk 0:00:30.6]} 27... Be6 {[%clk 0:00:21.5]}
28. Qf4 {[%clk 0:00:29.5]} 28... Rac8 {[%clk 0:00:22]} 29. Nf3 {[%clk
0:00:30.4]} 29... h6 {[%clk 0:00:20.5]} 30. N3h4 {[%clk 0:00:27.6]} 30... Qg5
{[%clk 0:00:21.5]} 31. Qxg5 {[%clk 0:00:26.8]} 31... hxg5 {[%clk 0:00:23.4]} 32.
Nf3 {[%clk 0:00:28.4]} 32... g6 {[%clk 0:00:23.3]} 33. Nd6 {[%clk 0:00:28.4]}
33... Bxd6 {[%clk 0:00:23.9]} 34. exd6 {[%clk 0:00:29.9]} 34... Red8 {[%clk
0:00:25.4]} 35. Be5 {[%clk 0:00:20.1]} 35... Rc2 {[%clk 0:00:26.4]} 36. Kg3
{[%clk 0:00:20.9]} 36... Rxa2 {[%clk 0:00:27.5]} 37. Nxg5 {[%clk 0:00:21.8]}
37... a4 {[%clk 0:00:28]} 38. bxa4 {[%clk 0:00:22.6]} 38... Ra3 {[%clk
0:00:29.1]} 39. Kf4 {[%clk 0:00:21.6]} 39... Rxa4 {[%clk 0:00:29]} 40. Nxe6
{[%clk 0:00:20.1]} 40... fxe6 {[%clk 0:00:30.9]} 41. Kg5 {[%clk 0:00:21.8]}
41... Ra3 {[%clk 0:00:29.6]} 42. Re1 {[%clk 0:00:19.6]} 42... Rf3 {[%clk
0:00:26.3]} 43. Rb1 {[%clk 0:00:17.5]} 43... b3 {[%clk 0:00:24.4]} 44. Kxg6
{[%clk 0:00:17.6]} 44... Rxh3 {[%clk 0:00:23.7]} 45. f4 {[%clk 0:00:18.2]} 45...
d4 {[%clk 0:00:20.3]} 46. g5 {[%clk 0:00:16.2]} 46... Rf8 {[%clk 0:00:15.4]} 47.
d7 {[%clk 0:00:13.8]} 47... Rd8 {[%clk 0:00:15.3]} 48. Rc1 {[%clk 0:00:14.9]}
48... Rh7 {[%clk 0:00:14.7]} 49. Rb1 {[%clk 0:00:12.9]} 49... d3 {[%clk
0:00:14.5]} 50. Rxb3 {[%clk 0:00:13.5]} 50... d2 {[%clk 0:00:15.6]} 51. Rb1
{[%clk 0:00:13.7]} 51... Rhxd7 {[%clk 0:00:15.9]} 52. Rd1 {[%clk 0:00:14.9]}
52... Rc8 {[%clk 0:00:17.2]} 53. Kf6 {[%clk 0:00:15.9]} 53... Rc1 {[%clk
0:00:17.5]} 54. Rxd2 {[%clk 0:00:16.6]} 54... Rxd2 {[%clk 0:00:18.2]} 55. Kxe6
{[%clk 0:00:18.3]} 55... Rc6+ {[%clk 0:00:19.4]} 56. Kf5 {[%clk 0:00:19.5]}
56... Kf7 {[%clk 0:00:20.7]} 57. Ke4 {[%clk 0:00:20]} 57... Re2+ {[%clk
0:00:21.6]} 58. Kf5 {[%clk 0:00:20.9]} 58... Rc5 {[%clk 0:00:21.5]} 0-1